fUSD/lending_fUSD_20260405
["ID","MTS","AMOUNT","RATE_DAILY","PERIOD"]
[419823093,1775399443732,-673.65,0.00013698,2]
[419823094,1775399443742,-673.65,0.00013698,2]
[419823095,1775399443752,-673.70745143,0.00013698,2]
[419823096,1775399443761,-500.0,0.00013698,2]
[419823097,1775399443771,-500.0,0.00013698,2]
[419823098,1775399443781,-500.0,0.00013698,2]
[419823099,1775399443790,-500.0,0.00013698,2]
[419823100,1775399443800,-500.0,0.00013698,2]
[419823101,1775399443809,-500.0,0.00013698,2]
[419823102,1775399443819,-500.0,0.00013698,2]
[419823103,1775399443828,-531.81791081,0.00013698,2]
[419823104,1775399443837,-500.0,0.00013698,2]
[419823105,1775399443847,-500.0,0.00013698,2]
[419823106,1775399443856,-500.0,0.00013698,2]
[419823107,1775399443866,-500.0,0.00013698,2]
[419823108,1775399443875,-500.0,0.00013698,2]
[419823109,1775399443885,-500.0,0.00013698,2]
[419823110,1775399443895,-500.0,0.00013698,2]
[419823111,1775399443905,-500.0,0.00013698,2]
[419823112,1775399443914,-500.0,0.00013698,2]
[419823113,1775399443923,-500.0,0.00013698,2]
[419823114,1775399443933,-500.0,0.00013698,2]
[419823115,1775399443943,-500.0,0.00013698,2]
[419823116,1775399443953,-500.0,0.00013698,2]
[419823117,1775399443963,-500.0,0.00013698,2]
[419823118,1775399443972,-500.0,0.00013698,2]
[419823119,1775399443982,-500.0,0.00013698,2]
[419823120,1775399443991,-390.77484076,0.00013698,2]
[419823121,1775399444001,-588.99,0.00013698,2]
[419823122,1775399444011,-588.99,0.00013698,2]
[419823123,1775399444020,-588.99,0.00013698,2]
[419823124,1775399444030,-588.99,0.00013698,2]
[419823125,1775399444040,-588.99,0.00013698,2]
[419823126,1775399444050,-588.99,0.00013698,2]
[419823127,1775399444059,-588.99,0.00013698,2]
[419823128,1775399444070,-588.99,0.00013698,2]
[419823129,1775399444079,-588.99,0.00013698,2]
[419823130,1775399444089,-588.99,0.00013698,2]
[419823131,1775399444099,-588.99,0.00013698,2]
[419823132,1775399444108,-588.99,0.00013698,2]
[419823133,1775399444117,-588.99,0.00013698,2]
[419823134,1775399444127,-588.99,0.00013698,2]
[419823135,1775399444136,-588.99,0.00013698,2]
[419823136,1775399444145,-588.99,0.00013698,2]
[419823137,1775399444155,-969.24,0.00013698,2]
[419823138,1775399444164,-969.24,0.00013698,2]
[419823139,1775399444174,-969.24,0.00013698,2]
[419823140,1775399444184,-969.24,0.00013698,2]
[419823141,1775399444193,-969.24,0.00013698,2]
[419823142,1775399444203,-969.24,0.00013698,2]
[419823143,1775399444213,-969.24,0.00013698,2]
[419823144,1775399444222,-969.24,0.00013698,2]
[419823145,1775399444231,-969.24,0.00013698,2]
[419823146,1775399444241,-969.24,0.00013698,2]
[419823147,1775399444252,-969.24,0.00013698,2]
[419823148,1775399444261,-969.24,0.00013698,2]
[419823149,1775399444271,-969.24,0.00013698,2]
[419823150,1775399444281,-969.24,0.00013698,2]
[419823151,1775399444290,-969.24,0.00013698,2]
[419823152,1775399444299,-969.24,0.00013698,2]
[419823153,1775399444309,-500.0,0.00013698,2]
[419823154,1775399444319,-500.0,0.00013698,2]
[419823155,1775399444328,-500.0,0.00013698,2]
[419823156,1775399444337,-500.0,0.00013698,2]
[419823157,1775399444347,-500.0,0.00013698,2]
[419823158,1775399444356,-500.0,0.00013698,2]
[419823159,1775399444366,-500.0,0.00013698,2]
[419823160,1775399444377,-500.0,0.00013698,2]
[419823161,1775399444386,-500.0,0.00013698,2]
[419823162,1775399444396,-500.0,0.00013698,2]
[419823163,1775399444405,-500.0,0.00013698,2]
[419823164,1775399444415,-500.0,0.00013698,2]
[419823165,1775399444424,-500.0,0.00013698,2]
[419823166,1775399444434,-500.0,0.00013698,2]
[419823167,1775399444444,-500.0,0.00013698,2]
[419823168,1775399444455,-500.0,0.00013698,2]
[419823169,1775399444464,-500.0,0.00013698,2]
[419823170,1775399444475,-500.0,0.00013698,2]
[419823171,1775399444484,-500.0,0.00013698,2]
[419823172,1775399444495,-500.0,0.00013698,2]
[419823173,1775399444505,-500.0,0.00013698,2]
[419823174,1775399444515,-500.0,0.00013698,2]
[419823175,1775399444525,-500.0,0.00013698,2]
[419823176,1775399444535,-500.0,0.00013698,2]
[419823177,1775399444545,-500.0,0.00013698,2]
[419823178,1775399444554,-500.0,0.00013698,2]
[419823179,1775399444564,-500.0,0.00013698,2]
[419823180,1775399444574,-500.0,0.00013698,2]
[419823181,1775399444583,-769.66,0.00013698,2]
[419823182,1775399444592,-769.66,0.00013698,2]
[419823183,1775399444602,-769.66,0.00013698,2]
[419823184,1775399444611,-769.66,0.00013698,2]
[419823185,1775399444621,-769.66,0.00013698,2]
[419823186,1775399444630,-769.66,0.00013698,2]
[419823187,1775399444640,-769.66,0.00013698,2]
[419823188,1775399444649,-769.66,0.00013698,2]
[419823189,1775399444658,-769.66,0.00013698,2]
[419823190,1775399444668,-769.66,0.00013698,2]
[419823191,1775399444678,-769.66,0.00013698,2]
[419823192,1775399444688,-769.66,0.00013698,2]
[419823193,1775399444699,-769.66,0.00013698,2]
[419823194,1775399444709,-769.66,0.00013698,2]
[419823195,1775399444720,-1088.2,0.00013698,2]
[419823196,1775399444730,-1088.2,0.00013698,2]
[419823197,1775399444739,-1088.2,0.00013698,2]
[419823198,1775399444748,-1088.2,0.00013698,2]
[419823199,1775399444758,-1088.2,0.00013698,2]
[419823200,1775399444768,-1088.2,0.00013698,2]
[419823201,1775399444778,-1088.2,0.00013698,2]
[419823202,1775399444788,-1088.2,0.00013698,2]
[419823203,1775399444798,-1088.2,0.00013698,2]
[419823204,1775399444807,-1088.2,0.00013698,2]
[419823205,1775399444817,-1088.2,0.00013698,2]
[419823206,1775399444827,-1088.2,0.00013698,2]
[419823207,1775399444836,-1088.2,0.00013698,2]
[419823208,1775399444846,-1088.2,0.00013698,2]
[419823209,1775399444856,-500.0,0.00013698,2]
[419823210,1775399444866,-500.0,0.00013698,2]
[419823211,1775399444875,-500.0,0.00013698,2]
[419823212,1775399444885,-500.0,0.00013698,2]
[419823213,1775399444895,-500.0,0.00013698,2]
[419823214,1775399444904,-500.0,0.00013698,2]
[419823215,1775399444914,-500.0,0.00013698,2]
[419823216,1775399444925,-500.0,0.00013698,2]
[419823217,1775399444934,-500.0,0.00013698,2]
[419823218,1775399444943,-500.0,0.00013698,2]
[419823219,1775399444953,-500.0,0.00013698,2]
[419823220,1775399444962,-500.0,0.00013698,2]
[419823221,1775399444972,-500.0,0.00013698,2]
[419823222,1775399444982,-500.0,0.00013698,2]
[419823223,1775399444991,-551.83212521,0.00013698,2]
[419823224,1775399445001,-500.0,0.00013698,2]
[419823225,1775399445010,-500.0,0.00013698,2]
[419823226,1775399445020,-500.0,0.00013698,2]
[419823227,1775399445029,-500.0,0.00013698,2]
[419823228,1775399445039,-500.0,0.00013698,2]
[419823229,1775399445048,-183.58723642,0.00013698,2]
[419823230,1775399445057,-1772.17,0.00013698,2]
[419823231,1775399445067,-1772.17,0.00013698,2]
[419823232,1775399445076,-1772.17,0.00013698,2]
[419823233,1775399445086,-1772.17,0.00013698,2]
[419823234,1775399445096,-1772.17,0.00013698,2]
[419823235,1775399445105,-1772.17,0.00013698,2]
[419823236,1775399445115,-1772.17,0.00013698,2]
[419823237,1775399445125,-1772.17,0.00013698,2]
[419823238,1775399445134,-1772.17,0.00013698,2]
[419823239,1775399445144,-1772.17,0.00013698,2]
[419823240,1775399445153,-1772.17,0.00013698,2]
[419823241,1775399445163,-1772.17,0.00013698,2]
[419823242,1775399445172,-1772.17,0.00013698,2]
[419823243,1775399445182,-1772.17,0.00013698,2]
[419823244,1775399445192,-500.0,0.00013698,2]
[419823245,1775399445201,-500.0,0.00013698,2]
[419823246,1775399445211,-500.0,0.00013698,2]
[419823247,1775399445220,-500.0,0.00013698,2]
[419823248,1775399445230,-500.0,0.00013698,2]
[419823249,1775399445239,-500.0,0.00013698,2]
[419823250,1775399445248,-500.0,0.00013698,2]
[419823251,1775399445258,-564.47521126,0.00013698,2]
[419823252,1775399445267,-500.0,0.00013698,2]
[419823253,1775399445277,-504.35317897,0.00013698,2]
[419823254,1775399445286,-500.0,0.00013698,2]
[419823255,1775399445296,-500.0,0.00013698,2]
[419823256,1775399445305,-500.0,0.00013698,2]
[419823257,1775399445314,-500.0,0.00013698,2]
[419823258,1775399445324,-500.0,0.00013698,2]
[419823259,1775399445335,-500.0,0.00013698,2]
[419823260,1775399445344,-500.0,0.00013698,2]
[419823261,1775399445354,-500.0,0.00013698,2]
[419823262,1775399445363,-184.01671123,0.00013698,2]
[419823263,1775399445373,-500.0,0.00013698,2]
[419823264,1775399445382,-500.0,0.00013698,2]
[419823265,1775399445391,-500.0,0.00013698,2]
[419823266,1775399445400,-500.0,0.00013698,2]
[419823267,1775399445410,-500.0,0.00013698,2]
[419823268,1775399445419,-500.0,0.00013698,2]
[419823269,1775399445429,-500.0,0.00013698,2]
[419823270,1775399445438,-500.0,0.00013698,2]
[419823271,1775399445448,-500.0,0.00013698,2]
[419823272,1775399445458,-500.0,0.00013698,2]
[419823273,1775399445468,-500.0,0.00013698,2]
[419823274,1775399445478,-500.0,0.00013698,2]
[419823275,1775399445487,-500.0,0.00013698,2]
[419823276,1775399445497,-500.0,0.00013698,2]
[419823277,1775399445507,-500.0,0.00013698,2]
[419823278,1775399445516,-500.0,0.00013698,2]
[419823279,1775399445526,-150.0,0.00013699,2]
[419823280,1775399445535,-150.0,0.00013699,2]
[419823281,1775399445545,-150.0,0.00013699,2]
[419823282,1775399445555,-150.0,0.00013699,2]
[419823283,1775399445564,-150.0,0.00013699,2]
[419823284,1775399445575,-150.0,0.00013699,2]
[419823285,1775399445585,-150.0,0.00013699,2]
[419823287,1775399445595,-717.06,0.00013699,2]
[419823289,1775399445605,-166.66,0.00013699,2]
[419823290,1775399445615,-200.0,0.00013699,2]
[419823291,1775399445625,-476.08,0.00013699,2]
[419823292,1775399445634,-396.73,0.00013699,2]
[419823293,1775399445644,-330.61,0.00013699,2]
[419823294,1775399445653,-275.51,0.00013699,2]
[419823295,1775399445663,-229.59,0.00013699,2]
[419823296,1775399445672,-191.33,0.00013699,2]
[419823297,1775399445682,-159.44,0.00013699,2]
[419823298,1775399445702,-797.21,0.00013699,2]
[419823299,1775399445712,-500.0,0.00013699,2]
[419823300,1775399445721,-500.0,0.00013699,2]
[419823301,1775399445731,-500.0,0.00013699,2]
[419823302,1775399445741,-500.0,0.00013699,2]
[419823304,1775399445751,-500.0,0.00013699,2]
[419823305,1775399445760,-500.0,0.00013699,2]
[419823306,1775399445771,-500.0,0.00013699,2]
[419823307,1775399445780,-403.93256284,0.00013699,2]
[419823308,1775399445790,-500.0,0.00013699,2]
[419823309,1775399445799,-164.79711181,0.00013699,2]
[419823310,1775399445810,-500.0,0.00013699,2]
[419823311,1775399445820,-500.0,0.00013699,2]
[419823312,1775399445830,-211.04857142,0.00013699,2]
[419823313,1775399445840,-500.0,0.00013699,2]
[419823314,1775399445849,-500.0,0.00013699,2]
[419823315,1775399445859,-500.0,0.00013699,2]
[419823316,1775399445868,-500.0,0.00013699,2]
[419823317,1775399445878,-500.0,0.00013699,2]
[419823318,1775399445888,-500.0,0.00013699,2]
[419823319,1775399445897,-500.0,0.00013699,2]
[419823320,1775399445908,-163.60261744,0.00013699,2]
[419823321,1775399445918,-500.0,0.00013699,2]
[419823322,1775399445927,-385.86149772,0.00013699,2]
[419823323,1775399445937,-500.0,0.00013699,2]
[419823324,1775399445947,-500.0,0.00013699,2]
[419823325,1775399445957,-161.91170216,0.00013699,2]
[419823326,1775399445966,-500.0,0.00013699,2]
[419823327,1775399445976,-500.0,0.00013699,2]
[419823328,1775399445986,-500.0,0.00013699,2]
[419823329,1775399445995,-500.0,0.00013699,2]
[419823330,1775399446006,-339.79133416,0.00013699,2]
[419823331,1775399446016,-500.0,0.00013699,2]
[419823332,1775399446026,-500.0,0.00013699,2]
[419823333,1775399446036,-500.0,0.00013699,2]
[419823334,1775399446046,-500.0,0.00013699,2]
[419823335,1775399446056,-500.0,0.00013699,2]
[419823336,1775399446065,-500.0,0.00013699,2]
[419823337,1775399446075,-500.0,0.00013699,2]
[419823338,1775399446085,-500.0,0.00013699,2]
[419823339,1775399446094,-500.0,0.00013699,2]
[419823340,1775399446104,-598.99606082,0.00013699,2]
[419823341,1775399446114,-519.03182682,0.00013699,2]
[419823342,1775399446123,-500.13152132,0.00013699,2]
[419823343,1775399446134,-160.34417201,0.00013699,2]
[419823344,1775399446144,-500.0,0.00013699,2]
[419823345,1775399446153,-500.0,0.00013699,2]
[419823346,1775399446163,-500.0,0.00013699,2]
[419823347,1775399446172,-500.0,0.00013699,2]
[419823348,1775399446182,-210.98153295,0.00013699,2]
[419823349,1775399446191,-500.0,0.00013699,2]
[419823350,1775399446201,-500.0,0.00013699,2]
[419823351,1775399446215,-500.0,0.00013699,2]
[419823352,1775399446225,-500.0,0.00013699,2]
[419823353,1775399446235,-500.0,0.00013699,2]
[419823354,1775399446244,-312.74353669,0.00013699,2]
[419823355,1775399446253,-160.7467095,0.00013699,2]
[419823356,1775399446263,-162.72924009,0.00013699,2]
[419823357,1775399446273,-515.7358709,0.00013699,2]
[419823358,1775399446283,-500.0,0.00013699,2]
[419823359,1775399446292,-500.0,0.00013699,2]
[419823360,1775399446303,-500.50066882,0.00013699,2]
[419823361,1775399446317,-607.20051974,0.00013699,2]
[419823362,1775399446330,-202.64993829,0.00013699,2]
[419823363,1775399446340,-500.0,0.00013699,2]
[419823364,1775399446350,-569.20510167,0.00013699,2]
[419823365,1775399446362,-500.0,0.00013699,2]
[419823366,1775399446373,-500.0,0.00013699,2]
[419823367,1775399446383,-518.73332026,0.00013699,2]
[419823368,1775399446394,-500.0,0.00013699,2]
[419823369,1775399446404,-168.69935806,0.00013699,2]
[419823370,1775399446414,-154.99051499,0.00013699,2]
[419823371,1775399446424,-785.67,0.00013699,2]
[419823372,1775399446434,-881.74,0.00013699,2]
[419823373,1775399446444,-217.0963,0.000138,2]
[419823374,1775399446455,-1070.46695611,0.00013812,2]
[419823375,1775399446465,-166.66,0.00013836,2]
[419823376,1775399446475,-200.0,0.00013836,2]
[419823377,1775399446485,-10286.0724003,0.00013841,2]
[419823378,1775399446495,-160.0,0.00013891,2]
[419823379,1775399446505,-600.0,0.00013954,2]
[419823380,1775399446515,-407.45,0.00013954,2]
[419823381,1775399446525,-150.0,0.00013973,2]
[419823382,1775399446536,-150.0,0.00013973,2]
[419823383,1775399446547,-150.0,0.00013973,2]
[419823384,1775399446559,-150.0,0.00013973,2]
[419823385,1775399446569,-150.0,0.00013973,2]
[419823386,1775399446580,-150.0,0.00013973,2]
[419823387,1775399446591,-150.0,0.00013973,2]
[419823388,1775399446601,-166.66,0.00013973,2]
[419823389,1775399446611,-785.67,0.00013973,2]
[419823390,1775399446621,-881.74,0.00013973,2]
[419823391,1775399446631,-1268.28,0.00014014,2]
[419823392,1775399446641,-1268.28,0.00014014,2]
[419823393,1775399446652,-806.66,0.00014014,2]
[419823394,1775399446663,-1268.28,0.00014014,2]
[419823396,1775399446674,-806.66,0.00014014,2]
[419823398,1775399446684,-1268.28,0.00014014,2]
[419823400,1775399446694,-806.66,0.00014014,2]
[419823403,1775399446707,-1268.28484396,0.00014014,2]
[419823405,1775399446718,-806.66,0.00014014,2]
[419823407,1775399446730,-806.84950636,0.00014014,2]
[419823409,1775399446745,-2000.0,0.00014028,2]
[419823412,1775399446756,-166.66,0.0001411,2]
[419823414,1775399446768,-60000.0,0.00014115,2]
[419823415,1775399446780,-166.66,0.00014247,2]
[419823416,1775399446791,-150.0,0.00014247,2]
[419823417,1775399446803,-150.0,0.00014247,2]
[419823418,1775399446815,-150.0,0.00014247,2]
[419823419,1775399446826,-150.0,0.00014247,2]
[419823420,1775399446839,-150.0,0.00014247,2]
[419823421,1775399446851,-150.0,0.00014247,2]
[419823422,1775399446863,-1000.0,0.00014247,2]
[419823423,1775399446874,-1000.0,0.00014247,2]
[419823424,1775399446885,-1000.0,0.00014247,2]
[419823425,1775399446896,-1000.0,0.00014247,2]
[419823426,1775399446907,-730.09729929,0.00014247,2]
[419823427,1775399446918,-1000.0,0.00014247,2]
[419823428,1775399446931,-1000.0,0.00014247,2]
[419823429,1775399446942,-1000.0,0.00014247,2]
[419823430,1775399446953,-1000.0,0.00014247,2]
[419823431,1775399446965,-1000.0,0.00014247,2]
[419823432,1775399446976,-1000.0,0.00014247,2]
[419823433,1775399446987,-500.76237275,0.00014247,2]
[419823434,1775399446998,-1000.0,0.00014247,2]
[419823435,1775399447010,-1000.0,0.00014247,2]
[419823436,1775399447023,-180.00096908,0.00014247,2]
[419823437,1775399447034,-1000.0,0.00014247,2]
[419823438,1775399447045,-1000.0,0.00014247,2]
[419823439,1775399447057,-1000.0,0.00014247,2]
[419823440,1775399447068,-1000.0,0.00014247,2]
[419823441,1775399447081,-1000.0,0.00014247,2]
[419823442,1775399447092,-1000.0,0.00014247,2]
[419823443,1775399447104,-1000.0,0.00014247,2]
[419823444,1775399447115,-1000.0,0.00014247,2]
[419823445,1775399447128,-861.43877969,0.00014247,2]
[419823446,1775399447140,-1000.0,0.00014247,2]
[419823447,1775399447152,-627.70930647,0.00014247,2]
[419823448,1775399447164,-1000.0,0.00014247,2]
[419823449,1775399447175,-308.03873246,0.00014247,2]
[419823450,1775399447187,-1000.0,0.00014247,2]
[419823451,1775399447199,-1000.0,0.00014247,2]
[419823452,1775399447211,-189.74788311,0.00014247,2]
[419823453,1775399447222,-1000.0,0.00014247,2]
[419823454,1775399447234,-1000.0,0.00014247,2]
[419823455,1775399447245,-1000.0,0.00014247,2]
[419823456,1775399447258,-1000.0,0.00014247,2]
[419823457,1775399447269,-1000.0,0.00014247,2]
[419823458,1775399447280,-1000.0,0.00014247,2]
[419823459,1775399447291,-743.80429884,0.00014247,2]
[419823460,1775399447303,-500.0,0.00014247,2]
[419823461,1775399447314,-1000.0,0.00014247,2]
[419823462,1775399447326,-1000.0,0.00014247,2]
[419823463,1775399447337,-1000.0,0.00014247,2]
[419823464,1775399447348,-1000.0,0.00014247,2]
[419823465,1775399447360,-1000.0,0.00014247,2]
[419823466,1775399447372,-1000.0,0.00014247,2]
[419823467,1775399447383,-1000.0,0.00014247,2]
[419823468,1775399447394,-790.32775663,0.00014247,2]
[419823469,1775399447405,-797.22,0.00014247,2]
[419823470,1775399447416,-881.74,0.00014247,2]
[419823471,1775399447427,-503.0,0.00014264,3]
[419823472,1775399447438,-500.0,0.00014298,2]
[419823473,1775399447449,-72823.1506587,0.00014298,2]
[419823474,1775399447461,-166.66,0.00014384,2]
[419823475,1775399447472,-200.0,0.00014384,2]
[419823476,1775399447485,-150.0,0.000144,2]
[419823477,1775399447497,-150.0,0.000144,2]
[419823478,1775399447508,-150.0,0.000144,2]
[419823479,1775399447519,-150.0,0.000144,2]
[419823480,1775399447529,-150.0,0.000144,2]
[419823481,1775399447540,-150.0,0.000144,2]
[419823482,1775399447552,-150.0,0.000144,2]
[419823483,1775399447563,-150.0,0.000144,2]
[419823484,1775399447573,-150.0,0.000144,2]
[419823485,1775399447584,-150.0,0.000144,2]
[419823486,1775399447595,-150.0,0.000144,2]
[419823487,1775399447606,-150.0,0.000144,2]
[419823488,1775399447617,-150.0,0.000144,2]
[419823489,1775399447627,-150.0,0.000144,2]
[419823490,1775399447638,-150.05716299,0.000144,2]
[419823491,1775399447649,-150.0,0.00014417,2]
[419823492,1775399447660,-150.0,0.0001442,2]
[419823493,1775399447670,-150.0,0.00014422,2]
[419823494,1775399447681,-150.0,0.00014427,2]
[419823495,1775399447692,-150.0,0.00014428,2]
[419823496,1775399447703,-150.0,0.00014428,2]
[419823497,1775399447714,-150.0,0.00014434,2]
[419823498,1775399447724,-150.0,0.0001444,2]
[419823499,1775399447735,-150.0,0.00014444,2]
[419823500,1775399447746,-150.0,0.0001445,2]
[419823501,1775399447756,-150.0,0.00014451,2]
[419823502,1775399447767,-150.0,0.00014454,2]
[419823503,1775399447778,-150.0,0.00014455,2]
[419823504,1775399447789,-150.0,0.00014456,2]
[419823505,1775399447799,-150.0,0.0001446,2]
[419823506,1775399447810,-150.0,0.00014462,2]
[419823507,1775399447822,-150.0,0.00014466,2]
[419823508,1775399447834,-150.0,0.00014467,2]
[419823509,1775399447844,-150.0,0.0001448,2]
[419823510,1775399447855,-150.0,0.00014481,2]
[419823511,1775399447866,-150.0,0.00014483,2]
[419823512,1775399447877,-150.0,0.00014484,2]
[419823513,1775399447888,-150.0,0.00014484,2]
[419823514,1775399447898,-150.0,0.00014488,2]
[419823515,1775399447909,-150.0,0.00014489,2]
[419823516,1775399447927,-150.0,0.000145,2]
[419823517,1775399447941,-150.0,0.000145,2]
[419823518,1775399447953,-150.0,0.00014501,2]
[419823519,1775399447966,-150.0,0.00014508,2]
[419823520,1775399447977,-150.0,0.0001451,2]
[419823521,1775399447989,-150.0,0.0001451,2]
[419823522,1775399448000,-150.0,0.00014512,2]
[419823523,1775399448014,-500.0,0.00014516,2]
[419823524,1775399448025,-150.0,0.00014518,2]
[419823525,1775399448036,-150.0,0.0001452,2]
[419823526,1775399448048,-881.74,0.00014521,2]
[419823527,1775399448060,-150.0,0.00014523,2]
[419823528,1775399448071,-150.0,0.00014532,2]
[419823529,1775399448083,-150.0,0.00014535,2]
[419823530,1775399448095,-150.0,0.00014536,2]
[419823531,1775399448106,-150.0,0.00014538,2]
[419823532,1775399448117,-150.0,0.0001454,2]
[419823533,1775399448128,-150.0,0.0001454,2]
[419823534,1775399448141,-150.0,0.0001455,2]
[419823535,1775399448153,-150.0,0.00014552,2]
[419823536,1775399448164,-150.0,0.00014553,2]
[419823537,1775399448176,-150.0,0.0001456,2]
[419823538,1775399448188,-150.0,0.00014563,2]
[419823539,1775399448199,-150.0,0.00014565,2]
[419823540,1775399448211,-150.0,0.00014565,2]
[419823541,1775399448222,-150.0,0.00014565,2]
[419823542,1775399448233,-150.0,0.00014565,2]
[419823543,1775399448244,-150.0,0.00014566,2]
[419823544,1775399448255,-150.0,0.00014568,2]
[419823545,1775399448266,-150.0,0.00014568,2]
[419823546,1775399448277,-150.0,0.00014575,2]
[419823547,1775399448288,-150.0,0.00014578,2]
[419823548,1775399448299,-150.0,0.0001458,2]
[419823549,1775399448310,-150.0,0.00014585,2]
[419823550,1775399448321,-150.0,0.00014585,2]
[419823551,1775399448331,-150.0,0.0001459,2]
[419823552,1775399448342,-150.0,0.00014593,2]
[419823553,1775399448355,-150.0,0.00014596,2]
[419823554,1775399448366,-150.0,0.00014597,2]
[419823555,1775399448377,-150.0,0.000146,2]
[419823556,1775399448388,-150.0,0.000146,2]
[419823557,1775399448398,-150.0,0.00014602,2]
[419823558,1775399448409,-150.0,0.00014617,2]
[419823559,1775399448420,-150.0,0.00014619,2]
[419823560,1775399448431,-150.0,0.00014619,2]
[419823561,1775399448442,-150.0,0.0001462,2]
[419823562,1775399448454,-150.0,0.00014621,2]
[419823563,1775399448465,-150.0,0.00014625,2]
[419823564,1775399448476,-150.0,0.00014636,2]
[419823565,1775399448487,-150.0,0.0001464,2]
[419823566,1775399448497,-150.0,0.00014641,2]
[419823567,1775399448508,-150.0,0.00014644,2]
[419823568,1775399448518,-150.0,0.00014646,2]
[419823569,1775399448529,-150.0,0.00014648,2]
[419823570,1775399448540,-150.0,0.0001465,2]
[419823571,1775399448550,-150.0,0.00014653,2]
[419823572,1775399448563,-150.0,0.00014653,2]
[419823573,1775399448576,-150.0,0.0001466,2]
[419823574,1775399448588,-150.0,0.00014663,2]
[419823575,1775399448603,-150.0,0.00014667,2]
[419823576,1775399448615,-150.0,0.00014667,2]
[419823577,1775399448627,-150.0,0.00014669,2]
[419823578,1775399448638,-150.0,0.00014671,2]
[419823579,1775399448650,-150.0,0.00014676,2]
[419823580,1775399448662,-150.0,0.0001468,2]
[419823581,1775399448673,-150.0,0.00014681,2]
[419823582,1775399448685,-150.0,0.00014685,2]
[419823583,1775399448696,-150.0,0.00014686,2]
[419823584,1775399448708,-150.0,0.00014698,2]
[419823585,1775399448719,-150.0,0.000147,2]
[419823586,1775399448730,-150.0,0.000147,2]
[419823587,1775399448742,-150.0,0.00014703,2]
[419823588,1775399448753,-150.0,0.00014703,2]
[419823589,1775399448764,-150.0,0.00014707,2]
[419823590,1775399448775,-150.0,0.00014708,2]
[419823591,1775399448786,-150.0,0.00014709,2]
[419823592,1775399448797,-150.0,0.0001472,2]
[419823593,1775399448809,-150.0,0.0001472,2]
[419823594,1775399448820,-150.0,0.00014725,2]
[419823595,1775399448831,-150.0,0.00014729,2]
[419823596,1775399448843,-820.17847281,0.0001473,2]
[419823597,1775399448855,-150.0,0.00014731,2]
[419823598,1775399448867,-150.0,0.00014737,2]
[419823599,1775399448879,-150.0,0.00014737,2]
[419823600,1775399448890,-150.0,0.0001474,2]
[419823601,1775399448902,-559.69,0.0001475,2]
[419823602,1775399448913,-150.0,0.0001475,2]
[419823603,1775399448926,-150.0,0.00014751,2]
[419823604,1775399448937,-150.0,0.00014753,2]
[419823605,1775399448950,-150.0,0.00014754,2]
[419823606,1775399448961,-150.0,0.00014756,2]